fUST/lending_fUST_20260520
["ID","MTS","AMOUNT","RATE_DAILY","PERIOD"]
[422686789,1779243961000,-500.0,8.118e-05,2]
[422686790,1779243961000,-500.0,8.118e-05,2]
[422686795,1779243962000,-3564.60746393,8.119e-05,2]
[422686794,1779243962000,-500.0,8.118e-05,2]
[422686793,1779243962000,-500.0,8.118e-05,2]
[422686792,1779243962000,-435.39253607,8.118e-05,2]
[422686798,1779243966000,-500.0,8.118e-05,2]
[422686799,1779243966000,-500.0,8.118e-05,2]
[422686801,1779243966000,-300.0,8.118e-05,2]
[422686802,1779243966000,-3050.0,8.119e-05,2]
[422686800,1779243966000,-650.0,8.118e-05,2]
[422686803,1779243974000,-5000.0,8.119e-05,2]
[422686804,1779244018000,-5000.0,8.119e-05,2]
[422686806,1779244019000,-5000.0,8.119e-05,2]
[422686805,1779244019000,-5000.0,8.119e-05,2]
[422686807,1779244020000,-5000.0,8.119e-05,2]
[422686808,1779244021000,-5000.0,8.119e-05,2]
[422686811,1779244022000,-4700.0,8.119e-05,2]
[422686810,1779244022000,-300.0,8.118e-05,2]
[422686809,1779244022000,-5000.0,8.119e-05,2]
[422686812,1779244023000,-5000.0,8.119e-05,2]
[422686813,1779244024000,-5000.0,8.119e-05,2]
[422686814,1779244025000,-5000.0,8.119e-05,2]
[422686815,1779244026000,-5000.0,8.119e-05,2]
[422686816,1779244027000,-5000.0,8.119e-05,2]
[422686818,1779244028000,-5000.0,8.119e-05,2]
[422686817,1779244028000,-5000.0,8.119e-05,2]
[422686819,1779244033000,-1000.0,8.119e-05,2]
[422686821,1779244034000,-1000.0,8.119e-05,2]
[422686820,1779244034000,-1000.0,8.119e-05,2]
[422686822,1779244034000,-1000.0,8.119e-05,2]
[422686826,1779244035000,-567.07758466,8.119e-05,2]
[422686825,1779244035000,-432.92241534,8.118e-05,2]
[422686824,1779244035000,-1000.0,8.119e-05,2]
[422686823,1779244035000,-1000.0,8.119e-05,2]
[422686829,1779244036000,-1000.0,8.119e-05,2]
[422686828,1779244036000,-1000.0,8.119e-05,2]
[422686827,1779244036000,-1000.0,8.119e-05,2]
[422686830,1779244037000,-1000.0,8.119e-05,2]
[422686831,1779244043000,-200.0,8.119e-05,2]
[422686832,1779244051000,-188.65724514,8.118e-05,2]
[422686833,1779244051000,-11.34275486,8.119e-05,2]
[422686834,1779244052000,-200.0,8.119e-05,2]
[422686837,1779244053000,-200.0,8.119e-05,2]
[422686836,1779244053000,-200.0,8.119e-05,2]
[422686835,1779244053000,-200.0,8.119e-05,2]
[422686840,1779244054000,-200.0,8.119e-05,2]
[422686839,1779244054000,-200.0,8.119e-05,2]
[422686838,1779244054000,-200.0,8.119e-05,2]
[422686844,1779244055000,-200.0,8.119e-05,2]
[422686843,1779244055000,-200.0,8.119e-05,2]
[422686842,1779244055000,-200.0,8.119e-05,2]
[422686841,1779244055000,-200.0,8.119e-05,2]
[422686845,1779244056000,-200.0,8.119e-05,2]
[422686847,1779244056000,-200.0,8.119e-05,2]
[422686846,1779244056000,-200.0,8.119e-05,2]
[422686848,1779244057000,-200.0,8.119e-05,2]
[422686849,1779244057000,-200.0,8.119e-05,2]
[422686852,1779244058000,-200.0,8.119e-05,2]
[422686851,1779244058000,-200.0,8.119e-05,2]
[422686850,1779244058000,-200.0,8.119e-05,2]
[422686855,1779244059000,-200.0,8.119e-05,2]
[422686854,1779244059000,-200.0,8.119e-05,2]
[422686853,1779244059000,-200.0,8.119e-05,2]
[422686858,1779244060000,-200.0,8.119e-05,2]
[422686857,1779244060000,-200.0,8.119e-05,2]
[422686856,1779244060000,-200.0,8.119e-05,2]
[422686859,1779244061000,-200.0,8.119e-05,2]
[422686861,1779244061000,-200.0,8.119e-05,2]
[422686860,1779244061000,-200.0,8.119e-05,2]
[422686862,1779244062000,-200.0,8.119e-05,2]
[422686863,1779244071000,-255.82,8.118e-05,2]
[422686865,1779244083000,-300.0,8.118e-05,2]
[422686866,1779244083000,-650.85486818,8.119e-05,2]
[422686864,1779244083000,-49.14513182,8.118e-05,2]
[422686867,1779244085000,-1000.0,8.119e-05,2]
[422686868,1779244086000,-1000.0,8.119e-05,2]
[422686869,1779244087000,-1000.0,8.119e-05,2]
[422686895,1779244232000,-7903.78814542,8.019e-05,2]
[422686899,1779244232000,-327.99057547,8.019e-05,2]
[422686887,1779244232000,-508.52906721,8.019e-05,2]
[422686886,1779244232000,-300.0,8.018e-05,2]
[422686912,1779244238000,-476.10863222,8.018e-05,2]
[422686913,1779244238000,-23.89136778,8.018e-05,2]
[422686915,1779244238000,-500.0,8.018e-05,2]
[422686914,1779244238000,-500.0,8.018e-05,2]
[422686916,1779244238000,-500.0,8.018e-05,2]
[422686983,1779244239000,-500.0,8.219e-05,2]
[422686954,1779244239000,-500.0,8.219e-05,2]
[422686946,1779244239000,-500.0,8.219e-05,2]
[422686947,1779244239000,-500.0,8.219e-05,2]
[422686952,1779244239000,-500.0,8.219e-05,2]
[422686955,1779244239000,-500.0,8.219e-05,2]
[422686956,1779244239000,-500.0,8.219e-05,2]
[422686953,1779244239000,-500.0,8.219e-05,2]
[422686948,1779244239000,-500.0,8.219e-05,2]
[422686950,1779244239000,-1074.3,8.219e-05,2]
[422686951,1779244239000,-500.0,8.219e-05,2]
[422686957,1779244239000,-500.0,8.219e-05,2]
[422686960,1779244239000,-500.0,8.219e-05,2]
[422686966,1779244239000,-500.0,8.219e-05,2]
[422686962,1779244239000,-500.0,8.219e-05,2]
[422686968,1779244239000,-500.0,8.219e-05,2]
[422686969,1779244239000,-500.0,8.219e-05,2]
[422686964,1779244239000,-525.3,8.219e-05,2]
[422686970,1779244239000,-500.0,8.219e-05,2]
[422686963,1779244239000,-500.0,8.219e-05,2]
[422686967,1779244239000,-500.0,8.219e-05,2]
[422686958,1779244239000,-500.0,8.219e-05,2]
[422686965,1779244239000,-823.82,8.219e-05,2]
[422686961,1779244239000,-500.0,8.219e-05,2]
[422686972,1779244239000,-501.72654556,8.219e-05,2]
[422686982,1779244239000,-500.0,8.219e-05,2]
[422686949,1779244239000,-500.0,8.219e-05,2]
[422686959,1779244239000,-506.53656764,8.219e-05,2]
[422686945,1779244239000,-500.0,8.219e-05,2]
[422686937,1779244239000,-161.70661154,8.165e-05,2]
[422686971,1779244239000,-500.0,8.219e-05,2]
[422686917,1779244239000,-500.0,8.018e-05,2]
[422686918,1779244239000,-500.0,8.018e-05,2]
[422686920,1779244239000,-425.92285512,8.018e-05,2]
[422686919,1779244239000,-74.07714488,8.018e-05,2]
[422686921,1779244239000,-500.0,8.018e-05,2]
[422686930,1779244239000,-492.53558104,8.118e-05,2]
[422686922,1779244239000,-349.53254715,8.018e-05,2]
[422686925,1779244239000,-500.0,8.018e-05,2]
[422686924,1779244239000,-500.0,8.018e-05,2]
[422686927,1779244239000,-630.25391226,8.019e-05,2]
[422686926,1779244239000,-509.77477525,8.018e-05,2]
[422686944,1779244239000,-500.0,8.219e-05,2]
[422686929,1779244239000,-500.0,8.063e-05,2]
[422686931,1779244239000,-23457.28409404,8.119e-05,2]
[422686932,1779244239000,-1108.0692916,8.119e-05,2]
[422686942,1779244239000,-500.0,8.219e-05,2]
[422686943,1779244239000,-500.0,8.219e-05,2]
[422686933,1779244239000,-152.0,8.141e-05,7]
[422686934,1779244239000,-160.0,8.164e-05,2]
[422686935,1779244239000,-766.43500783,8.164e-05,2]
[422686938,1779244239000,-160.0,8.165e-05,2]
[422686936,1779244239000,-160.0,8.164e-05,2]
[422686941,1779244239000,-500.0,8.219e-05,2]
[422686939,1779244239000,-500.0,8.219e-05,2]
[422686940,1779244239000,-4576.2119,8.219e-05,2]
[422686928,1779244239000,-179706.80307051,8.019e-05,2]
[422686973,1779244239000,-500.0,8.219e-05,2]
[422686923,1779244239000,-500.0,8.018e-05,2]
[422686975,1779244239000,-500.0,8.219e-05,2]
[422687007,1779244239000,-561.62,8.219e-05,2]
[422687010,1779244239000,-500.0,8.219e-05,2]
[422687011,1779244239000,-1309.04,8.219e-05,2]
[422687012,1779244239000,-500.0,8.219e-05,2]
[422687013,1779244239000,-500.0,8.219e-05,2]
[422687014,1779244239000,-500.0,8.219e-05,2]
[422687015,1779244239000,-500.0,8.219e-05,2]
[422687016,1779244239000,-500.0,8.219e-05,2]
[422687018,1779244239000,-500.0,8.219e-05,2]
[422687019,1779244239000,-500.0,8.219e-05,2]
[422687021,1779244239000,-504.6,8.219e-05,2]
[422687020,1779244239000,-500.0,8.219e-05,2]
[422687025,1779244239000,-500.0,8.219e-05,2]
[422687023,1779244239000,-682.15,8.219e-05,2]
[422687024,1779244239000,-2640.29,8.219e-05,2]
[422687022,1779244239000,-500.0,8.219e-05,2]
[422687034,1779244239000,-500.0,8.219e-05,2]
[422687026,1779244239000,-500.0,8.219e-05,2]
[422687031,1779244239000,-950.71,8.219e-05,2]
[422687028,1779244239000,-500.0,8.219e-05,2]
[422687030,1779244239000,-500.0,8.219e-05,2]
[422687029,1779244239000,-500.0,8.219e-05,2]
[422687033,1779244239000,-500.0,8.219e-05,2]
[422687032,1779244239000,-500.0,8.219e-05,2]
[422687027,1779244239000,-945.48,8.219e-05,2]
[422687035,1779244239000,-500.0,8.219e-05,2]
[422686974,1779244239000,-500.0,8.219e-05,2]
[422687009,1779244239000,-500.0,8.219e-05,2]
[422686998,1779244239000,-500.0,8.219e-05,2]
[422687017,1779244239000,-500.0,8.219e-05,2]
[422687000,1779244239000,-500.0,8.219e-05,2]
[422687001,1779244239000,-500.0,8.219e-05,2]
[422686977,1779244239000,-500.0,8.219e-05,2]
[422686979,1779244239000,-500.0,8.219e-05,2]
[422686980,1779244239000,-597.13,8.219e-05,2]
[422686978,1779244239000,-500.0,8.219e-05,2]
[422686981,1779244239000,-500.0,8.219e-05,2]
[422686984,1779244239000,-500.0,8.219e-05,2]
[422686987,1779244239000,-500.0,8.219e-05,2]
[422686986,1779244239000,-500.0,8.219e-05,2]
[422686996,1779244239000,-500.0,8.219e-05,2]
[422686985,1779244239000,-500.0,8.219e-05,2]
[422686993,1779244239000,-500.0,8.219e-05,2]
[422686995,1779244239000,-500.0,8.219e-05,2]
[422686988,1779244239000,-500.0,8.219e-05,2]
[422686976,1779244239000,-500.0,8.219e-05,2]
[422687008,1779244239000,-500.0,8.219e-05,2]
[422686989,1779244239000,-500.0,8.219e-05,2]
[422687003,1779244239000,-500.0,8.219e-05,2]
[422686999,1779244239000,-500.0,8.219e-05,2]
[422687004,1779244239000,-500.0,8.219e-05,2]
[422687002,1779244239000,-500.0,8.219e-05,2]
[422687006,1779244239000,-500.0,8.219e-05,2]
[422686997,1779244239000,-500.0,8.219e-05,2]
[422686990,1779244239000,-500.0,8.219e-05,2]
[422686992,1779244239000,-500.0,8.219e-05,2]
[422686994,1779244239000,-500.0,8.219e-05,2]
[422686991,1779244239000,-500.0,8.219e-05,2]
[422687005,1779244239000,-500.0,8.219e-05,2]
[422687048,1779244240000,-500.0,8.219e-05,2]
[422687042,1779244240000,-500.0,8.219e-05,2]
[422687041,1779244240000,-500.0,8.219e-05,2]
[422687039,1779244240000,-500.0,8.219e-05,2]
[422687037,1779244240000,-500.0,8.219e-05,2]
[422687040,1779244240000,-500.0,8.219e-05,2]
[422687038,1779244240000,-500.0,8.219e-05,2]
[422687036,1779244240000,-500.0,8.219e-05,2]
[422687043,1779244240000,-500.0,8.219e-05,2]
[422687051,1779244240000,-500.0,8.219e-05,2]
[422687046,1779244240000,-500.0,8.219e-05,2]
[422687053,1779244240000,-500.0,8.219e-05,2]
[422687047,1779244240000,-500.0,8.219e-05,2]
[422687059,1779244240000,-483.87006317,8.219e-05,2]
[422687044,1779244240000,-1000.0,8.219e-05,2]
[422687055,1779244240000,-500.0,8.219e-05,2]
[422687058,1779244240000,-554.58,8.219e-05,2]
[422687056,1779244240000,-500.0,8.219e-05,2]
[422687054,1779244240000,-500.0,8.219e-05,2]
[422687052,1779244240000,-509.39,8.219e-05,2]
[422687049,1779244240000,-619.02,8.219e-05,2]
[422687045,1779244240000,-500.0,8.219e-05,2]
[422687057,1779244240000,-500.0,8.219e-05,2]
[422687185,1779244243000,-71270.10197394,8.019e-05,2]
[422687183,1779244243000,-78900.88015877,8.019e-05,2]
[422687181,1779244243000,-283.87210497,8.019e-05,2]
[422687212,1779244244000,-431.83675393,8.019e-05,2]
[422687210,1779244244000,-3770.77574739,8.019e-05,2]
[422687345,1779244247000,-384.19366072,8.019e-05,2]
[422687346,1779244247000,-107426.14549504,8.019e-05,2]
[422687349,1779244247000,-289.99622442,8.171e-05,2]
[422687348,1779244247000,-14.38588519,8.063e-05,2]
[422687347,1779244247000,-602.77810194,8.063e-05,2]
[422687350,1779244273000,-327.16776271,8.171e-05,2]
[422687364,1779244521000,-838.78608353,8.029e-05,2]
[422687362,1779244521000,-500.0,8.018e-05,2]
[422687363,1779244521000,-511.21391647,8.023e-05,2]
[422687361,1779244521000,-500.0,8.018e-05,2]
[422687391,1779244863000,-321.90670217,7.851e-05,2]
[422687390,1779244863000,-178.09329783,7.673e-05,2]
[422687392,1779244883000,-179.08293597,7.851e-05,2]
[422687399,1779245154000,-300.0,8.017e-05,2]
[422687400,1779245154000,-1200.0,8.017e-05,2]
[422687401,1779245154000,-400.39665643,8.018e-05,2]
[422687397,1779245154000,-294.79,7.922e-05,2]
[422687398,1779245154000,-501.00972442,7.969e-05,2]
[422687455,1779245432000,-561.14638683,7.912e-05,2]
[422687514,1779245442000,-82.23811165,7.912e-05,2]
[422687536,1779245444000,-500.0,7.917e-05,2]
[422687535,1779245444000,-506.38811256,7.917e-05,2]
[422687531,1779245444000,-490.98952994,7.915e-05,2]
[422687532,1779245444000,-445.9208337,7.917e-05,2]
[422687538,1779245444000,-500.0,7.917e-05,2]
[422687540,1779245444000,-500.0,7.917e-05,2]
[422687527,1779245444000,-347.97400968,7.912e-05,2]
[422687530,1779245444000,-5562.01657068,7.912e-05,2]
[422687528,1779245444000,-1391.89603871,7.912e-05,2]
[422687526,1779245444000,-2665.89716892,7.912e-05,2]
[422687525,1779245444000,-23.75693518,7.912e-05,2]
[422687533,1779245444000,-500.0,7.917e-05,2]
[422687541,1779245444000,-500.0,7.917e-05,2]
[422687539,1779245444000,-500.0,7.917e-05,2]
[422687529,1779245444000,-3131.7660871,7.912e-05,2]
[422687537,1779245444000,-500.0,7.917e-05,2]
[422687534,1779245444000,-500.0,7.917e-05,2]
[422687550,1779245444000,-500.0,7.917e-05,2]
[422687554,1779245444000,-500.0,7.917e-05,2]
[422687553,1779245444000,-500.0,7.917e-05,2]
[422687551,1779245444000,-438.89824828,7.917e-05,2]
[422687552,1779245444000,-450.24060904,7.917e-05,2]
[422687548,1779245444000,-506.80840809,7.917e-05,2]
[422687555,1779245444000,-331.68753184,7.917e-05,2]
[422687546,1779245444000,-25.48589577,7.917e-05,2]
[422687547,1779245444000,-500.0,7.917e-05,2]
[422687545,1779245444000,-474.51410423,7.917e-05,2]
[422687544,1779245444000,-500.0,7.917e-05,2]
[422687542,1779245444000,-500.0,7.917e-05,2]
[422687543,1779245444000,-500.0,7.917e-05,2]
[422687549,1779245444000,-500.0,7.917e-05,2]
[422687573,1779245447000,-500.0,7.917e-05,2]
[422687568,1779245447000,-225.86319211,7.917e-05,2]
[422687570,1779245447000,-500.0,7.917e-05,2]
[422687567,1779245447000,-500.0,7.917e-05,2]
[422687569,1779245447000,-500.0,7.917e-05,2]
[422687564,1779245447000,-142.54628774,7.917e-05,2]
[422687566,1779245447000,-500.0,7.917e-05,2]
[422687565,1779245447000,-500.0,7.917e-05,2]
[422687563,1779245447000,-357.45371226,7.917e-05,2]
[422687561,1779245447000,-168.31246816,7.917e-05,2]
[422687562,1779245447000,-500.0,7.917e-05,2]
[422687572,1779245447000,-500.0,7.917e-05,2]
[422687571,1779245447000,-500.0,7.917e-05,2]
[422687577,1779245447000,-500.0,7.917e-05,2]
[422687580,1779245447000,-500.0,7.917e-05,2]
[422687575,1779245447000,-500.0,7.917e-05,2]
[422687590,1779245447000,-1143.39730097,8.017e-05,2]
[422687588,1779245447000,-53171.07486467,7.918e-05,2]
[422687589,1779245447000,-10095.85726418,8.017e-05,2]
[422687585,1779245447000,-175.58977673,7.917e-05,2]
[422687574,1779245447000,-500.0,7.917e-05,2]
[422687587,1779245447000,-19141.260988,7.918e-05,2]
[422687586,1779245447000,-1024.41022327,7.917e-05,2]
[422687583,1779245447000,-500.0,7.917e-05,2]
[422687581,1779245447000,-500.0,7.917e-05,2]
[422687582,1779245447000,-500.0,7.917e-05,2]
[422687578,1779245447000,-500.0,7.917e-05,2]
[422687576,1779245447000,-500.0,7.917e-05,2]
[422687579,1779245447000,-500.0,7.917e-05,2]
[422687584,1779245447000,-300.0,7.917e-05,2]
[422687623,1779246338000,-505.72495779,7.6e-05,2]
[422687622,1779246338000,-151.0000001,7.51e-05,2]
[422687624,1779246471000,421.23,0.00017808,120]
[422687680,1779246631000,-771.48625741,7.6e-05,2]
[422687675,1779246631000,-4138.31675819,7.6e-05,2]
[422687682,1779246631000,-502.26663727,7.632e-05,2]
[422687678,1779246631000,-2270.87446784,7.6e-05,2]
[422687673,1779246631000,-269.52946695,7.6e-05,2]
[422687697,1779246631000,-537.68450001,8.114e-05,2]
[422687695,1779246631000,-500.0,8.103e-05,2]
[422687701,1779246631000,-1715.77398049,8.117e-05,2]
[422687691,1779246631000,-823.90034883,7.927e-05,2]
[422687686,1779246631000,-300.0,7.926e-05,2]
[422687688,1779246631000,-5658.72825397,7.927e-05,2]
[422687693,1779246631000,-1201.5584049,7.927e-05,2]
[422687699,1779246631000,-548.00059669,8.117e-05,2]
[422687684,1779246631000,-184.0,7.925e-05,2]
[422687712,1779246632000,-410.71337545,8.117e-05,2]
[422687710,1779246632000,-545.83712939,8.117e-05,2]
[422687711,1779246632000,-3082.32694291,8.117e-05,2]
[422687708,1779246632000,-391.92824447,8.117e-05,2]
[422687761,1779246638000,-625.86319211,8.118e-05,2]
[422687763,1779246638000,-500.0,8.118e-05,2]
[422687762,1779246638000,-500.0,8.118e-05,2]
[422687760,1779246638000,-522.1814838,8.118e-05,2]
[422687758,1779246638000,-500.0,8.118e-05,2]
[422687759,1779246638000,-500.0,8.118e-05,2]
[422687757,1779246638000,-500.0,8.118e-05,2]
[422687756,1779246638000,-500.0,8.118e-05,2]
[422687766,1779246638000,-500.0,8.118e-05,2]
[422687764,1779246638000,-500.0,8.118e-05,2]
[422687767,1779246638000,-500.0,8.118e-05,2]
[422687775,1779246638000,-1200.0,8.119e-05,2]
[422687769,1779246638000,-500.0,8.118e-05,2]
[422687770,1779246638000,-500.0,8.118e-05,2]
[422687768,1779246638000,-500.0,8.118e-05,2]
[422687771,1779246638000,-500.0,8.118e-05,2]
[422687754,1779246638000,-500.0,8.118e-05,2]
[422687773,1779246638000,-500.0,8.118e-05,2]
[422687774,1779246638000,-26655.10376574,8.119e-05,2]
[422687777,1779246638000,-152.0,8.144e-05,7]
[422687776,1779246638000,-320016.7568757,8.119e-05,2]
[422687778,1779246638000,-1214.46933529,8.158e-05,2]
[422687781,1779246638000,-160.0,8.158e-05,2]
[422687765,1779246638000,-500.0,8.118e-05,2]
[422687753,1779246638000,-216.69340101,8.118e-05,2]
[422687750,1779246638000,-568.41566665,8.118e-05,2]
[422687751,1779246638000,-568.41566665,8.118e-05,2]
[422687728,1779246638000,-723.99021078,8.117e-05,2]
[422687730,1779246638000,-516.74151513,8.118e-05,2]
[422687729,1779246638000,-172.76099613,8.117e-05,2]
[422687731,1779246638000,-516.74151513,8.118e-05,2]
[422687732,1779246638000,-516.74151513,8.118e-05,2]
[422687733,1779246638000,-516.74151513,8.118e-05,2]
[422687735,1779246638000,-516.74151513,8.118e-05,2]
[422687734,1779246638000,-516.74151513,8.118e-05,2]
[422687740,1779246638000,-516.74151513,8.118e-05,2]
[422687739,1779246638000,-516.74151513,8.118e-05,2]
[422687737,1779246638000,-516.74151513,8.118e-05,2]
[422687755,1779246638000,-500.0,8.118e-05,2]
[422687736,1779246638000,-516.74151513,8.118e-05,2]
[422687741,1779246638000,-516.74151513,8.118e-05,2]
[422687743,1779246638000,-516.74151513,8.118e-05,2]
[422687742,1779246638000,-516.74151513,8.118e-05,2]
[422687752,1779246638000,-961.57409997,8.118e-05,2]
[422687744,1779246638000,-516.74151513,8.118e-05,2]
[422687745,1779246638000,-516.74151513,8.118e-05,2]
[422687749,1779246638000,-568.41566665,8.118e-05,2]
[422687782,1779246638000,-161.70661154,8.158e-05,2]
[422687746,1779246638000,-568.41566665,8.118e-05,2]
[422687747,1779246638000,-568.41566665,8.118e-05,2]
[422687748,1779246638000,-568.41566665,8.118e-05,2]
[422687738,1779246638000,-516.74151513,8.118e-05,2]
[422687780,1779246638000,-160.0,8.158e-05,2]
[422687772,1779246638000,-500.0,8.118e-05,2]
[422687787,1779246638000,-500.0,8.219e-05,2]
[422687810,1779246638000,-999.88,8.219e-05,2]
[422687811,1779246638000,-500.0,8.219e-05,2]
[422687816,1779246638000,-500.0,8.219e-05,2]
[422687814,1779246638000,-502.58026254,8.219e-05,2]
[422687815,1779246638000,-640.57,8.219e-05,2]
[422687817,1779246638000,-500.0,8.219e-05,2]
[422687819,1779246638000,-500.0,8.219e-05,2]
[422687821,1779246638000,-500.0,8.219e-05,2]
[422687822,1779246638000,-500.0,8.219e-05,2]
[422687820,1779246638000,-500.0,8.219e-05,2]
[422687818,1779246638000,-500.0,8.219e-05,2]
[422687779,1779246638000,-766.43500783,8.158e-05,2]
[422687824,1779246638000,-500.0,8.219e-05,2]
[422687823,1779246638000,-500.0,8.219e-05,2]
[422687828,1779246638000,-500.0,8.219e-05,2]
[422687826,1779246638000,-500.0,8.219e-05,2]
[422687827,1779246638000,-500.0,8.219e-05,2]
[422687829,1779246638000,-500.7707333,8.219e-05,2]
[422687830,1779246638000,-225.95045554,8.219e-05,2]
[422687831,1779246638000,-545.47,8.219e-05,2]
[422687834,1779246638000,-500.0,8.219e-05,2]
[422687835,1779246638000,-500.0,8.219e-05,2]
[422687833,1779246638000,-500.0,8.219e-05,2]
[422687836,1779246638000,-500.0,8.219e-05,2]
[422687832,1779246638000,-500.0,8.219e-05,2]
[422687812,1779246638000,-507.49408673,8.219e-05,2]
[422687805,1779246638000,-500.0,8.219e-05,2]
[422687825,1779246638000,-522.45,8.219e-05,2]
[422687809,1779246638000,-500.0,8.219e-05,2]
[422687813,1779246638000,-500.0,8.219e-05,2]
[422687784,1779246638000,-1214.46933527,8.173e-05,2]
[422687785,1779246638000,-1214.46933527,8.189e-05,2]
[422687786,1779246638000,-160.0,8.217e-05,2]
[422687789,1779246638000,-538.513,8.219e-05,2]
[422687788,1779246638000,-4308.0187,8.219e-05,2]
[422687790,1779246638000,-500.0,8.219e-05,2]
[422687783,1779246638000,-169.143,8.171e-05,2]
[422687800,1779246638000,-500.32,8.219e-05,2]
[422687791,1779246638000,-510.25,8.219e-05,2]
[422687793,1779246638000,-1026.42,8.219e-05,2]
[422687798,1779246638000,-500.0,8.219e-05,2]
[422687792,1779246638000,-500.0,8.219e-05,2]
[422687794,1779246638000,-500.0,8.219e-05,2]
[422687795,1779246638000,-500.0,8.219e-05,2]
[422687796,1779246638000,-500.0,8.219e-05,2]
[422687799,1779246638000,-500.0,8.219e-05,2]
[422687802,1779246638000,-500.0,8.219e-05,2]
[422687801,1779246638000,-500.0,8.219e-05,2]
[422687803,1779246638000,-733.0,8.219e-05,2]
[422687804,1779246638000,-500.0,8.219e-05,2]
[422687808,1779246638000,-500.0,8.219e-05,2]
[422687807,1779246638000,-500.0,8.219e-05,2]
[422687806,1779246638000,-500.0,8.219e-05,2]
[422687797,1779246638000,-500.0,8.219e-05,2]
[422687876,1779246639000,-500.32342573,8.219e-05,2]
[422687881,1779246639000,-232.44662576,8.219e-05,2]
[422687877,1779246639000,-500.0,8.219e-05,2]
[422687875,1779246639000,-500.0,8.219e-05,2]
[422687865,1779246639000,-500.0,8.219e-05,2]
[422687872,1779246639000,-500.0,8.219e-05,2]
[422687873,1779246639000,-500.0,8.219e-05,2]
[422687869,1779246639000,-1236.72,8.219e-05,2]
[422687867,1779246639000,-500.0,8.219e-05,2]
[422687878,1779246639000,-500.0,8.219e-05,2]
[422687874,1779246639000,-1058.45,8.219e-05,2]
[422687883,1779246639000,-569.25,8.219e-05,2]
[422687896,1779246639000,-500.0,8.219e-05,2]
[422687880,1779246639000,-500.0,8.219e-05,2]
[422687879,1779246639000,-500.0,8.219e-05,2]
[422687884,1779246639000,-1676.42,8.219e-05,2]
[422687886,1779246639000,-500.0,8.219e-05,2]
[422687885,1779246639000,-500.0,8.219e-05,2]
[422687888,1779246639000,-500.0,8.219e-05,2]
[422687889,1779246639000,-500.0,8.219e-05,2]
[422687887,1779246639000,-538.39325459,8.219e-05,2]
[422687890,1779246639000,-500.0,8.219e-05,2]
[422687891,1779246639000,-500.0,8.219e-05,2]
[422687894,1779246639000,-500.0,8.219e-05,2]
[422687892,1779246639000,-588.25,8.219e-05,2]
[422687864,1779246639000,-500.52901734,8.219e-05,2]
[422687882,1779246639000,-3059.3,8.219e-05,2]
[422687871,1779246639000,-500.0,8.219e-05,2]
[422687893,1779246639000,-170.67344641,8.219e-05,2]
[422687866,1779246639000,-1038.12,8.219e-05,2]
[422687838,1779246639000,-500.0,8.219e-05,2]
[422687839,1779246639000,-500.0,8.219e-05,2]
[422687837,1779246639000,-500.0,8.219e-05,2]
[422687841,1779246639000,-501.4397175,8.219e-05,2]
[422687840,1779246639000,-1265.07,8.219e-05,2]
[422687843,1779246639000,-826.46,8.219e-05,2]
[422687842,1779246639000,-413.27780775,8.219e-05,2]
[422687847,1779246639000,-500.0,8.219e-05,2]
[422687845,1779246639000,-500.0,8.219e-05,2]
[422687846,1779246639000,-500.0,8.219e-05,2]
[422687844,1779246639000,-500.0,8.219e-05,2]
[422687851,1779246639000,-500.0,8.219e-05,2]
[422687850,1779246639000,-500.0,8.219e-05,2]
[422687868,1779246639000,-500.0,8.219e-05,2]
[422687849,1779246639000,-500.0,8.219e-05,2]
[422687853,1779246639000,-534.18,8.219e-05,2]
[422687852,1779246639000,-500.0,8.219e-05,2]
[422687854,1779246639000,-500.0,8.219e-05,2]
[422687855,1779246639000,-500.0,8.219e-05,2]
[422687859,1779246639000,-525.96,8.219e-05,2]
[422687858,1779246639000,-500.0,8.219e-05,2]
[422687856,1779246639000,-500.0,8.219e-05,2]
[422687857,1779246639000,-500.0,8.219e-05,2]
[422687860,1779246639000,-500.0,8.219e-05,2]
[422687861,1779246639000,-565.99,8.219e-05,2]